Service area,Service sub division,TVBC Service,Expense type,Detailed expense type,TVBC account code,Date Paid,Transaction Reference, Nett Value ,Supplier Name
External Trading Accounts,Business Parks,Premises & Asset Management,Premises related Expenditure,Water Services,Water And Sewerage Charges,25/06/2020,307305,-570.68,Castle Water Limited
Environmental & Regulatory,Community Development,Community and Leisure ,Supplies & Services,Grants & Subscriptions,Grants,04/06/2020,305750,500,Veterans In Action
Environmental & Regulatory,Community Development,Community and Leisure ,Supplies & Services,Grants & Subscriptions,Grants,04/06/2020,305751,500,Abbotts Ann Parish Council
Planning & Development,Community Development,Community and Leisure ,Supplies & Services,Grants & Subscriptions,Grants,04/06/2020,305797,500,Andover Museum Loft Singers
Environmental & Regulatory,Community Development,Community and Leisure ,Supplies & Services,Grants & Subscriptions,Grants,25/06/2020,307482,500,Citizen'S Advice Test Valley
Planning & Development,Economic Development,Planning Policy & Economic Development ,Supplies & Services,Grants & Subscriptions,Grants,11/06/2020,306362,500,Amanpreet Kaur Bale (Beauty & Brows)
Planning & Development,Economic Development,Planning Policy & Economic Development ,Supplies & Services,Grants & Subscriptions,Grants,18/06/2020,306938,500,A M Art
Planning & Development,Economic Development,Planning Policy & Economic Development ,Supplies & Services,Grants & Subscriptions,Grants,04/06/2020,305798,500,Shelby'S Beauty
Planning & Development,Development Control,Planning & Building,Employees,Indirect Employee Expenses,Temporary Staff,18/06/2020,305997,420,G2 Recruitment Solutions
Environmental & Regulatory,Waste management,Environmental,Supplies & Services,Miscellaneous Expenses,Recycling Campaign,11/06/2020,305961,420,Allwag Promotions Ltd
Environmental & Regulatory,Waste management,Environmental,Supplies & Services,Miscellaneous Expenses,Recycling Campaign,11/06/2020,305963,420.75,Allwag Promotions Ltd
"Highways, Roads & Transport",Parking Services,Plan Pol & Transport,Supplies & Services,Communications & Computing,Software Maintenance,04/06/2020,305476,421,Flowbird Smart City Uk Ltd
Central Services to the Public,Management & Support Services,Premises & Asset Management,Premises related Expenditure,Water Services,Water And Sewerage Charges,18/06/2020,306612,507.79,Castle Water Limited
"Highways, Roads & Transport",Highways and roads - maintenance,Plan Pol & Transport,Premises related Expenditure,Repairs Alterations & Maintenance of Buildings,Highways Repairs,25/06/2020,306914,425,M J Ellis Manufacturing
Cultural & Related,Open Spaces,Community and Leisure ,Premises related Expenditure,Grounds Maintenance Costs,Gm - Additional Works,04/06/2020,305761,227.65,Personal Data - Data Protection Act 1998
Cultural & Related,Open Spaces,Community and Leisure ,Premises related Expenditure,Grounds Maintenance Costs,Gm - Additional Works,04/06/2020,305761,201.3,Personal Data - Data Protection Act 1998
Central Services to the Public,Management & Support Services,Environmental,Transport Related Expenditure,Direct Transport Costs,Oils,11/06/2020,305995,434.6,Fuchs Lubricants (Uk) Plc
Cultural & Related,Open Spaces,Environmental,Premises related Expenditure,Water Services,Water And Sewerage Charges,04/06/2020,305633,522.26,Castle Water Limited
Cultural & Related,Open Spaces,Environmental,Supplies & Services,"Equipment, Furniture & Materials",Purchase Equip + Materials,25/06/2020,306806,523,Rigby Taylor Ltd
Planning & Development,Economic Development,Planning Policy & Economic Development ,Supplies & Services,Services,Training Courses,04/06/2020,305618,530,Lynx Uk Ltd
"Highways, Roads & Transport",Public Transport,Plan Pol & Transport,Third Party Payments,Transport Operators in Respect of Concessionary Fares,Voluntary Orgs Reimbursement,18/06/2020,306929,532.2,Thorngate Village Care Group
Environmental & Regulatory,Waste management,Environmental,Transport Related Expenditure,Direct Transport Costs,Repair Materials,11/06/2020,305990,446.05,Dennis Eagle Ltd
Environmental & Regulatory,Waste management,Environmental,Transport Related Expenditure,Direct Transport Costs,Repair Materials,11/06/2020,305991,446.05,Dennis Eagle Ltd
Central Services to the Public,Management & Support Services,Community and Leisure ,Supplies & Services,Grants & Subscriptions,Subscriptions,04/06/2020,305089,450,Chief Cultural & Leisure Officers Association
Cultural & Related,Culture & Heritage,Premises & Asset Management,Premises related Expenditure,Water Services,Water And Sewerage Charges,18/06/2020,306623,541.94,Castle Water Limited
Environmental & Regulatory,Waste management,Environmental,Supplies & Services,"Equipment, Furniture & Materials",Purchase Equip + Materials,18/06/2020,306219,455,J & H M Dickson Ltd
Housing Services,Homelessness,Housing and Environmental Health ,Supplies & Services,Miscellaneous Expenses,Bed & Breakfast,04/06/2020,305217,455,Personal Data - Data Protection Act 1998
Environmental & Regulatory,Waste management,Environmental,Supplies & Services,Miscellaneous Expenses,Recycling Campaign,18/06/2020,306026,463,Allwag Promotions Ltd
Cultural & Related,Open Spaces,Environmental,Transport Related Expenditure,Direct Transport Costs,Petrol,11/06/2020,305743,463.17,Fuel Card Services Ltd
External Trading Accounts,Business Parks,Premises & Asset Management,Supplies & Services,Communications & Computing,Land Line Telephone Charges,04/06/2020,305421,26.03,Virgin Media Payments Ltd
Cultural & Related,Culture & Heritage,Premises & Asset Management,Supplies & Services,Communications & Computing,Land Line Telephone Charges,04/06/2020,305421,26,Virgin Media Payments Ltd
Cultural & Related,Culture & Heritage,Premises & Asset Management,Supplies & Services,Communications & Computing,Land Line Telephone Charges,04/06/2020,305421,39,Virgin Media Payments Ltd
Central Services to the Public,Management & Support Services,IT,Supplies & Services,Communications & Computing,Communication Links,04/06/2020,305421,26,Virgin Media Payments Ltd
Central Services to the Public,Management & Support Services,IT,Supplies & Services,Communications & Computing,Communication Links,04/06/2020,305421,67,Virgin Media Payments Ltd
Cultural & Related,Recreation & Sport,Community and Leisure ,Supplies & Services,Communications & Computing,Land Line Telephone Charges,04/06/2020,305421,26,Virgin Media Payments Ltd
Cultural & Related,Recreation & Sport,Community and Leisure ,Supplies & Services,Communications & Computing,Land Line Telephone Charges,04/06/2020,305421,13,Virgin Media Payments Ltd
Cultural & Related,Culture & Heritage,Community and Leisure ,Supplies & Services,Communications & Computing,Communication Links,04/06/2020,305421,74.03,Virgin Media Payments Ltd
"Highways, Roads & Transport",Parking Services,Plan Pol & Transport,Supplies & Services,Communications & Computing,Alarm Lines,04/06/2020,305421,37,Virgin Media Payments Ltd
Central Services to the Public,Management & Support Services,Environmental,Supplies & Services,Communications & Computing,Land Line Telephone Charges,04/06/2020,305421,53.05,Virgin Media Payments Ltd
Central Services to the Public,Emergency Planning,Corporate & Democratic,Supplies & Services,Communications & Computing,Land Line Telephone Charges,04/06/2020,305421,78,Virgin Media Payments Ltd
Planning & Development,Development Control,Planning & Building,Supplies & Services,Communications & Computing,Computer Hardware,04/06/2020,305599,470.24,Exampleit Ltd
Central Services,Corporate & Democratic Core,Corporate & Democratic,Supplies & Services,Miscellaneous Expenses,Advertising,04/06/2020,305758,475,Andover Radio Ltd
Environmental & Regulatory,Waste management,Environmental,Supplies & Services,"Printing, Stationery & General Office Expenses",External Printing,18/06/2020,305714,475,Cammegh Davies Fleming
Central Services to the Public,Management & Support Services,Finance,Supplies & Services,"Printing, Stationery & General Office Expenses",Postage Costs,25/06/2020,306761,477.92,Whistl Uk Ltd
Central Services to the Public,Elections,Legal & Democratic,Supplies & Services,"Printing, Stationery & General Office Expenses",Written Media,11/06/2020,305729,530,Wildy & Sons Ltd
Planning & Development,Development Control,Planning & Building,Supplies & Services,Communications & Computing,Computer Hardware,18/06/2020,305982,488,Pure Technology Group
Central Services to the Public,Management & Support Services,Premises & Asset Management,Premises related Expenditure,Water Services,Water And Sewerage Charges,25/06/2020,307284,588.42,Castle Water Limited
Cultural & Related,Open Spaces,Environmental,Transport Related Expenditure,Direct Transport Costs,Repair Materials,04/06/2020,305437,498.79,T H White Ltd
Cultural & Related,Culture & Heritage,Community and Leisure ,Supplies & Services,Communications & Computing,Computer Software,18/06/2020,305985,500,Tickets.Com Ltd
Environmental & Regulatory,Regulatory Services,Housing and Environmental Health ,Supplies & Services,Miscellaneous Expenses,Health And Safety,25/06/2020,307415,500.88,Skyguard Ltd
Environmental & Regulatory,Regulatory Services,Housing and Environmental Health ,Transport Related Expenditure,Direct Transport Costs,External Garages,25/06/2020,306769,250,Foray Motor Group Ltd
Environmental & Regulatory,Regulatory Services,Housing and Environmental Health ,Transport Related Expenditure,Direct Transport Costs,Repair Materials,25/06/2020,306769,253.77,Foray Motor Group Ltd
Cultural & Related,Open Spaces,Community and Leisure ,Third Party Payments,Private contractors,Main Contractor Costs,25/06/2020,307437,506,Personal Data - Data Protection Act 1998
Cultural & Related,Open Spaces,Environmental,Transport Related Expenditure,Direct Transport Costs,Repair Materials,11/06/2020,306220,506.8,T H White Ltd
Central Services to the Public,Local Tax Collection,Revenues,Supplies & Services,Miscellaneous Expenses,Data Access Requests,18/06/2020,306573,3.86,Tameside Mbc
Central Services to the Public,Local Tax Collection,Revenues,Supplies & Services,Miscellaneous Expenses,Data Access Requests,18/06/2020,306573,555.89,Tameside Mbc
Housing Services,Homelessness,Housing and Environmental Health ,Supplies & Services,Miscellaneous Expenses,Bed & Breakfast,04/06/2020,305226,525,Personal Data - Data Protection Act 1998
Central Services to the Public,Management & Support Services,Premises & Asset Management,Supplies & Services,"Equipment, Furniture & Materials",Purchase Equip + Materials,25/06/2020,306871,526,Vp-Av Ltd
Cultural & Related,Recreation & Sport,Premises & Asset Management,Premises related Expenditure,Water Services,Water And Sewerage Charges,25/06/2020,307282,666.5,Castle Water Limited
Central Services to the Public,Management & Support Services,Environmental,Supplies & Services,"Equipment, Furniture & Materials",Purchase Tools,11/06/2020,306003,556,Hc Slingsby Plc
Environmental & Regulatory,Waste management,Environmental,Transport Related Expenditure,Direct Transport Costs,Repair Materials,11/06/2020,305592,556.57,Dennis Eagle Ltd
Planning & Development,Economic Development,Planning Policy & Economic Development ,Supplies & Services,Services,Training Courses,25/06/2020,307378,675,Yellow Brick Road Projects
Central Services,Corporate & Democratic Core,Corporate & Democratic,Supplies & Services,"Printing, Stationery & General Office Expenses",External Printing,18/06/2020,306765,567,Tall Security Print Ltd
"Highways, Roads & Transport",Parking Services,Plan Pol & Transport,Premises related Expenditure,Repairs Alterations & Maintenance of Buildings,Car Park General Repairs,04/06/2020,305716,568,Externiture Ltd
Cultural & Related,Regulatory Services,Community and Leisure ,Third Party Payments,Private contractors,Main Contractor Costs,11/06/2020,305980,580,Austin Foot Ecology
Cultural & Related,Open Spaces,Community and Leisure ,Supplies & Services,"Equipment, Furniture & Materials",Purchase Equip + Materials,11/06/2020,306328,580,Austin Foot Ecology
Environmental & Regulatory,Waste management,Environmental,Supplies & Services,"Equipment, Furniture & Materials",Purchase Equip + Materials,11/06/2020,306208,582.1,Frontier Medical Group
Environmental & Regulatory,Regulatory Services,Premises & Asset Management,Premises related Expenditure,Water Services,Water And Sewerage Charges,25/06/2020,307281,701.79,Castle Water Limited
External Trading Accounts,Business Parks,Premises & Asset Management,Premises related Expenditure,Repairs Alterations & Maintenance of Buildings,Planned Maintenance - Non Est,04/06/2020,305425,587,Alarms & Electrical (Devizes) Ltd
Cultural & Related,Open Spaces,Environmental,Supplies & Services,Communications & Computing,Mobile Telephone Charges,25/06/2020,307129,196,Vodafone Limited
Environmental & Regulatory,Waste & Recycling Management,Environmental,Supplies & Services,Communications & Computing,Mobile Telephone Charges,25/06/2020,307129,56.33,Vodafone Limited
Environmental & Regulatory,Street Cleansing (not chargeable to Highways),Environmental,Supplies & Services,Communications & Computing,Mobile Telephone Charges,25/06/2020,307129,148.99,Vodafone Limited
Environmental & Regulatory,Waste management,Environmental,Supplies & Services,Communications & Computing,Mobile Telephone Charges,25/06/2020,307129,119,Vodafone Limited
Central Services to the Public,Management & Support Services,Environmental,Supplies & Services,Communications & Computing,Mobile Telephone Charges,25/06/2020,307129,42,Vodafone Limited
Central Services to the Public,Management & Support Services,Environmental,Supplies & Services,Communications & Computing,Mobile Telephone Charges,25/06/2020,307129,31.27,Vodafone Limited
Central Services to the Public,Management & Support Services,IT,Supplies & Services,Communications & Computing,Mobile Telephone Charges,25/06/2020,307101,610.52,Vodafone Limited
Cultural & Related,Culture & Heritage,Premises & Asset Management,Supplies & Services,Miscellaneous Expenses,Waste Collection,18/06/2020,306604,184.33,Suez Recycling And Recovery Uk Ltd
Central Services to the Public,Management & Support Services,Premises & Asset Management,Supplies & Services,Miscellaneous Expenses,Waste Collection,18/06/2020,306604,429.38,Suez Recycling And Recovery Uk Ltd
Central Services to the Public,Management & Support Services,Premises & Asset Management,Third Party Payments,Other Establishments,Private Contractors,18/06/2020,306782,617.18,Tsg Building Services Plc
Environmental & Regulatory,Street Cleansing (not chargeable to Highways),Environmental,Transport Related Expenditure,Direct Transport Costs,Repair Materials,25/06/2020,306894,627.39,Lister Wilder
Central Services to the Public,Management & Support Services,Housing and Environmental Health ,Supplies & Services,Communications & Computing,Mobile Telephone Charges,04/06/2020,305744,623.52,Vodafone Limited
Central Services to the Public,Management & Support Services,Estates and Economic Development ,Third Party Payments,Private contractors,Main Contractor Costs,18/06/2020,305789,625,Abp Associates Ltd
Planning & Development,Economic Development,Planning Policy & Economic Development ,Supplies & Services,Grants & Subscriptions,Grants,11/06/2020,306335,750,Hfms Limited
Planning & Development,Economic Development,Planning Policy & Economic Development ,Supplies & Services,Grants & Subscriptions,Grants,18/06/2020,306931,750,Run Rest Retreat Ltd
Central Services to the Public,Management & Support Services,IT,Supplies & Services,Communications & Computing,Land Line Telephone Charges,18/06/2020,306610,627.56,Bt Conferencing
Central Services to the Public,Management & Support Services,Premises & Asset Management,Third Party Payments,Other Establishments,Private Contractors,18/06/2020,306595,639.75,Spear Electrical Limited
Central Services to the Public,Management & Support Services,Premises & Asset Management,Supplies & Services,"Equipment, Furniture & Materials",Purchase Equip + Materials,18/06/2020,306598,640,Wessex Fixings
Housing Services,Homelessness,Housing and Environmental Health ,Supplies & Services,Miscellaneous Expenses,Bed & Breakfast,04/06/2020,305725,770,Home From Home Respite Care
Central Services to the Public,Management & Support Services,Premises & Asset Management,Third Party Payments,Other Establishments,Private Contractors,18/06/2020,306781,648.85,Tsg Building Services Plc
Central Services to the Public,Management & Support Services,Estates and Economic Development ,Third Party Payments,Private contractors,Main Contractor Costs,04/06/2020,305610,651,Evac Chair International Ltd
Central Services to the Public,Management & Support Services,Finance,Supplies & Services,"Printing, Stationery & General Office Expenses",Postage Costs,18/06/2020,305977,652.65,Whistl Uk Ltd
Environmental & Regulatory,Waste management,Environmental,Employees,Indirect Employee Expenses,Agency Staff - Waged Posts,11/06/2020,305975,654.53,24-7 Staffing
Environmental & Regulatory,Waste management,Environmental,Transport Related Expenditure,Direct Transport Costs,Repair Materials,25/06/2020,306774,661.81,Dennis Eagle Ltd
Cultural & Related,Open Spaces,Environmental,Supplies & Services,Miscellaneous Expenses,Waste Collection,18/06/2020,306216,671.06,Raymond Brown Waste Solutions
Planning & Development,Planning Policy,Plan Pol & Transport,Supplies & Services,Grants & Subscriptions,Grants,18/06/2020,306741,807.36,Hampshire County Council
Environmental & Regulatory,Waste management,Environmental,Transport Related Expenditure,Direct Transport Costs,Repair Materials,04/06/2020,305229,673.34,Dennis Eagle Ltd
Central Services to the Public,Management & Support Services,Premises & Asset Management,Supplies & Services,Communications & Computing,Telephone Tracking System,11/06/2020,305460,48,Teletrac Navman (Uk) Ltd
Environmental & Regulatory,Regulatory Services,Housing and Environmental Health ,Supplies & Services,Communications & Computing,Telephone Tracking System,11/06/2020,305460,6,Teletrac Navman (Uk) Ltd
Environmental & Regulatory,Regulatory Services,Housing and Environmental Health ,Supplies & Services,Communications & Computing,Telephone Tracking System,11/06/2020,305460,12,Teletrac Navman (Uk) Ltd
Cultural & Related,Open Spaces,Community and Leisure ,Supplies & Services,Communications & Computing,Telephone Tracking System,11/06/2020,305460,6,Teletrac Navman (Uk) Ltd
Cultural & Related,Open Spaces,Community and Leisure ,Supplies & Services,Communications & Computing,Telephone Tracking System,11/06/2020,305460,6,Teletrac Navman (Uk) Ltd
"Highways, Roads & Transport",Parking Services,Plan Pol & Transport,Supplies & Services,Communications & Computing,Telephone Tracking System,11/06/2020,305460,12,Teletrac Navman (Uk) Ltd
Cultural & Related,Open Spaces,Environmental,Supplies & Services,Communications & Computing,Telephone Tracking System,11/06/2020,305460,246,Teletrac Navman (Uk) Ltd
Environmental & Regulatory,Waste & Recycling Management,Environmental,Supplies & Services,Communications & Computing,Telephone Tracking System,11/06/2020,305460,36,Teletrac Navman (Uk) Ltd
Environmental & Regulatory,Street Cleansing (not chargeable to Highways),Environmental,Supplies & Services,Communications & Computing,Telephone Tracking System,11/06/2020,305460,168.7,Teletrac Navman (Uk) Ltd
Environmental & Regulatory,Waste management,Environmental,Supplies & Services,Communications & Computing,Telephone Tracking System,11/06/2020,305460,120,Teletrac Navman (Uk) Ltd
Environmental & Regulatory,Waste management,Environmental,Supplies & Services,Communications & Computing,Telephone Tracking System,11/06/2020,305460,12,Teletrac Navman (Uk) Ltd
Central Services to the Public,Management & Support Services,Environmental,Supplies & Services,Communications & Computing,Telephone Tracking System,11/06/2020,305460,18,Teletrac Navman (Uk) Ltd
Central Services to the Public,Management & Support Services,Premises & Asset Management,Supplies & Services,"Equipment, Furniture & Materials",Equipment Hire,04/06/2020,305474,694.15,Afi-Uplift Limited
Central Services to the Public,Management & Support Services,Premises & Asset Management,Supplies & Services,"Equipment, Furniture & Materials",Equipment Hire,11/06/2020,306014,695,Afi-Uplift Limited
Cultural & Related,Tourism,Planning Policy & Economic Development ,Supplies & Services,Miscellaneous Expenses,Design Fees,25/06/2020,306807,700,The Marketing Collective Ltd
Environmental & Regulatory,Regulatory Services,Premises & Asset Management,Premises related Expenditure,Water Services,Water And Sewerage Charges,04/06/2020,305627,852.07,Castle Water Limited
Central Services to the Public,Management & Support Services,IT,Supplies & Services,Communications & Computing,Computer Hardware,04/06/2020,305619,777.2,Winchester City Council
Cultural & Related,Recreation & Sport,Community and Leisure ,Supplies & Services,Services,Professional Fees,11/06/2020,306214,730,Blake Morgan
Central Services to the Public,Elections,Legal & Democratic,Supplies & Services,Services,Training Courses,18/06/2020,305091,730.66,Civica Uk Ltd
Housing Services,Homelessness,Housing and Environmental Health ,Supplies & Services,Communications & Computing,Computer Hardware,04/06/2020,305194,488,Pure Technology Group
Central Services to the Public,Management & Support Services,IT,Supplies & Services,"Equipment, Furniture & Materials",IT Supp and Serv AMP,04/06/2020,305194,244,Pure Technology Group
Environmental & Regulatory,Regulatory Services,Premises & Asset Management,Premises related Expenditure,Water Services,Water And Sewerage Charges,18/06/2020,306617,879.14,Castle Water Limited
Central Services,Corporate & Democratic Core,Corporate & Democratic,Supplies & Services,Services,Professional Advice,04/06/2020,305742,750,Dc Commercial Solicitors
Cultural & Related,Open Spaces,Environmental,Supplies & Services,Communications & Computing,Telephone Tracking System,04/06/2020,305453,750.65,Teletrac Navman (Uk) Ltd
Environmental & Regulatory,Street Cleansing (not chargeable to Highways),Environmental,Supplies & Services,Communications & Computing,Telephone Tracking System,04/06/2020,305453,0.65,Teletrac Navman (Uk) Ltd
Environmental & Regulatory,Waste management,Environmental,Supplies & Services,Communications & Computing,Telephone Tracking System,04/06/2020,305453,1.3,Teletrac Navman (Uk) Ltd
Environmental & Regulatory,Street Cleansing (not chargeable to Highways),Environmental,Supplies & Services,"Equipment, Furniture & Materials",Maintenance Equip + Materials,04/06/2020,303148,759.9,Imperial Polythene Products Ltd
External Trading Accounts,Business Parks,Premises & Asset Management,Supplies & Services,Miscellaneous Expenses,Waste Collection,11/06/2020,305620,760.2,Basingstoke Skip Hire & Sthrn Waste Mgt Ltd
Planning & Development,Development Control,Planning & Building,Supplies & Services,Miscellaneous Expenses,Planning Appeal Costs,18/06/2020,306766,781.25,Cornerstone Barristers
Environmental & Regulatory,Regulatory Services,Housing and Environmental Health ,Supplies & Services,Grants and subscriptions,Capital Grants,25/06/2020,307460,952,Epw Construction Ltd
Housing Services,Homelessness,Housing and Environmental Health ,Supplies & Services,Miscellaneous Expenses,Bed & Breakfast,04/06/2020,304951,980,Home From Home Respite Care
Planning & Development,Development Control,Planning & Building,Supplies & Services,Services,Project Consultancy - Policy,24/06/2020,307270,817.5,Kingfisher Ecology Ltd
Central Services to the Public,Management & Support Services,Finance,Supplies & Services,"Printing, Stationery & General Office Expenses",Postage Costs,04/06/2020,305081,824.74,Whistl Uk Ltd
Environmental & Regulatory,Waste management,Environmental,Transport Related Expenditure,Direct Transport Costs,Repair Materials,11/06/2020,305594,830.97,Dennis Eagle Ltd
Planning & Development,Community Development,Community and Leisure ,Supplies & Services,Grants & Subscriptions,Grants,25/06/2020,307458,1000,Nct Andover Branch
Central Services to the Public,Management & Support Services,Environmental,Supplies & Services,"Equipment, Furniture & Materials",Maintenance Equip + Materials,25/06/2020,306883,837.6,Totalkare H.D.W.S Ltd
Central Services to the Public,Management & Support Services,Premises & Asset Management,Supplies & Services,"Equipment, Furniture & Materials",Equipment Hire,11/06/2020,306016,862.5,Crown Water & Coffee
Central Services to the Public,Management & Support Services,Premises & Asset Management,Third Party Payments,Other Establishments,Private Contractors,18/06/2020,306798,868,Sonic Scaffolding 2000 Ltd
Central Services to the Public,Management & Support Services,Premises & Asset Management,Premises related Expenditure,Repairs Alterations & Maintenance of Buildings,Estates premises costs - AMP,04/06/2020,305430,880,Sonic Scaffolding 2000 Ltd
Environmental & Regulatory,Waste management,Environmental,Supplies & Services,Miscellaneous Expenses,Recycling Campaign,11/06/2020,305964,893,Allwag Promotions Ltd
Central Services to the Public,Management & Support Services,Legal & Democratic,Supplies & Services,Services,Professional Fees,04/06/2020,297819,900,9 Stone Buildings
Central Services to the Public,Management & Support Services,IT,Supplies & Services,Communications & Computing,Computer Hardware,11/06/2020,306025,935,Virtual Effect Ltd
Planning & Development,Planning Policy,Plan Pol & Transport,Employees,Indirect Employee Expenses,Temporary Staff,03/06/2020,305116,952,New Forest District Council
Planning & Development,Planning Policy,Plan Pol & Transport,Employees,Indirect Employee Expenses,Temporary Staff,25/06/2020,307379,952,New Forest District Council
Environmental & Regulatory,Regulatory Services,Legal & Democratic,Supplies & Services,Services,Training Courses,25/06/2020,307150,960,James Button & Co
Central Services to the Public,Management & Support Services,Premises & Asset Management,Premises related Expenditure,Water Services,Water And Sewerage Charges,25/06/2020,307286,1164.42,Castle Water Limited
Environmental & Regulatory,Regulatory Services,Housing and Environmental Health ,Supplies & Services,Grants and subscriptions,Capital Grants,25/06/2020,307459,1168.5,B J C Design
"Highways, Roads & Transport",Parking Services,Plan Pol & Transport,Premises related Expenditure,Repairs Alterations & Maintenance of Buildings,Salt & Gritting,11/06/2020,305760,973.91,Peacock Salt
"Highways, Roads & Transport",Highways and roads - maintenance,Plan Pol & Transport,Premises related Expenditure,Repairs Alterations & Maintenance of Buildings,Highways Repairs,04/06/2020,304386,975,Signway Supplies (Datchet Ltd)
Central Services to the Public,Management & Support Services,Finance,Supplies & Services,Grants & Subscriptions,Subscriptions,11/06/2020,305966,988.8,Croner-I Limited
"Highways, Roads & Transport",Parking Services,Plan Pol & Transport,Premises related Expenditure,Repairs Alterations & Maintenance of Buildings,Salt & Gritting,11/06/2020,305759,1017.68,Peacock Salt
Planning & Development,Development Control,Planning & Building,Employees,Indirect Employee Expenses,Temporary Staff,18/06/2020,305996,1050,G2 Recruitment Solutions
Planning & Development,Development Control,Planning & Building,Employees,Indirect Employee Expenses,Temporary Staff,18/06/2020,305998,1050,G2 Recruitment Solutions
Planning & Development,Development Control,Planning & Building,Employees,Indirect Employee Expenses,Temporary Staff,18/06/2020,305999,1050,G2 Recruitment Solutions
Cultural & Related,Open Spaces,Community and Leisure ,Premises related Expenditure,Grounds Maintenance Costs,Snagging Works,11/06/2020,306215,1050,Personal Data - Data Protection Act 1998
Environmental & Regulatory,Waste management,Environmental,Employees,Indirect Employee Expenses,Agency Staff - Waged Posts,18/06/2020,306743,1051.84,24-7 Staffing
Environmental & Regulatory,Waste & Recycling Management,Environmental,Transport Related Expenditure,Direct Transport Costs,External Garages,25/06/2020,307095,331,Palfinger Uk
Environmental & Regulatory,Waste & Recycling Management,Environmental,Transport Related Expenditure,Direct Transport Costs,Repair Materials,25/06/2020,307095,738.44,Palfinger Uk
Central Services to the Public,Management & Support Services,Premises & Asset Management,Premises related Expenditure,Cleaning and domestic supplies,Window Cleaning,04/06/2020,305486,1082,Allclean Windows Limited
Housing Services,Homelessness,Housing and Environmental Health ,Supplies & Services,Grants & Subscriptions,Grants,18/06/2020,306933,1300,Personal Data - Data Protection Act 1998
Central Services to the Public,Management & Support Services,Premises & Asset Management,Premises related Expenditure,Energy Costs,Gas,18/06/2020,306581,1095.42,Total Gas & Power Ltd
Environmental & Regulatory,Waste & Recycling Management,Environmental,Transport Related Expenditure,Direct Transport Costs,Repair Materials,18/06/2020,306568,1102.38,Adams Morey Ltd
Environmental & Regulatory,Waste management,Environmental,Supplies & Services,Miscellaneous Expenses,Recycling Campaign,11/06/2020,305962,1105,Allwag Promotions Ltd
Cultural & Related,Open Spaces,Community and Leisure ,Premises related Expenditure,Grounds Maintenance Costs,Gm - Additional Works,04/06/2020,305601,1150,Purbeck Civil Engineering Limited
Environmental & Regulatory,Regulatory Services,Housing and Environmental Health ,Supplies & Services,Grants and subscriptions,Capital Grants,18/06/2020,306935,1438,Epw Construction Ltd
Cultural & Related,Open Spaces,Environmental,Third Party Payments,Other Establishments,Private Contractors,11/06/2020,306028,1455.87,Ivan Gibson Agricultural Contractor
Central Services to the Public,Management & Support Services,Environmental,Transport Related Expenditure,Direct Transport Costs,Repair Materials,25/06/2020,306859,1233.26,Terberg Matec Uk Limited
Central Services to the Public,Management & Support Services,Estates and Economic Development ,Third Party Payments,Private contractors,Main Contractor Costs,25/06/2020,306869,1238.25,Safespec Building Services Ltd
Environmental & Regulatory,Street Cleansing (not chargeable to Highways),Environmental,Transport Related Expenditure,Direct Transport Costs,Repair Materials,04/06/2020,305452,1251.96,Lister Wilder
Central Services,Corporate & Democratic Core,Corporate & Democratic,Supplies & Services,Grants & Subscriptions,Subscriptions,04/06/2020,304022,1252,District Councils' Network
Environmental & Regulatory,Waste management,Environmental,Transport Related Expenditure,Direct Transport Costs,Repair Materials,04/06/2020,305431,1304.3,Dennis Eagle Ltd
Housing Services,Housing Benefits ,Revenues,Employees,Indirect Employee Expenses,Temporary Staff,18/06/2020,306759,1575,Personal Data - Data Protection Act 1998
Environmental & Regulatory,Waste management,Environmental,Transport Related Expenditure,Direct Transport Costs,Tyres,11/06/2020,306009,1321.39,Tructyre Ats
Housing Services,Housing Benefits ,Revenues,Employees,Indirect Employee Expenses,Temporary Staff,04/06/2020,305764,1592.5,Personal Data - Data Protection Act 1998
Cultural & Related,Tourism,Planning Policy & Economic Development ,Premises related Expenditure,Repairs Alterations & Maintenance of Buildings,Planned Maintenance - Non Est,04/06/2020,305473,70.99,Temple Lifts Ltd
Cultural & Related,Culture & Heritage,Premises & Asset Management,Premises related Expenditure,Repairs Alterations & Maintenance of Buildings,Planned Maintenance - Non Est,04/06/2020,305473,210,Temple Lifts Ltd
Cultural & Related,Culture & Heritage,Premises & Asset Management,Premises related Expenditure,Repairs Alterations & Maintenance of Buildings,Planned Maintenance - Non Est,04/06/2020,305473,20.09,Temple Lifts Ltd
Central Services to the Public,Management & Support Services,Premises & Asset Management,Premises related Expenditure,Repairs Alterations & Maintenance of Buildings,Planned Maintenance - Non Est,04/06/2020,305473,840,Temple Lifts Ltd
Cultural & Related,Recreation & Sport,Community and Leisure ,Premises related Expenditure,Repairs Alterations & Maintenance of Buildings,Planned Maintenance - Non Est,04/06/2020,305473,210,Temple Lifts Ltd
Environmental & Regulatory,Waste & Recycling Management,Environmental,Transport Related Expenditure,Direct Transport Costs,Tyres,04/06/2020,305459,474.87,Tructyre Ats
Environmental & Regulatory,Waste management,Environmental,Transport Related Expenditure,Direct Transport Costs,Tyres,04/06/2020,305459,906.4,Tructyre Ats
"Highways, Roads & Transport",Highways and roads - maintenance,Plan Pol & Transport,Third Party Payments,Private contractors,Main Contractor Costs,18/06/2020,306648,1450,J P Lighting Design
Planning & Development,Development Control,Planning & Building,Supplies & Services,Communications & Computing,Computer Hardware,04/06/2020,305195,1464,Pure Technology Group
External Trading Accounts,Business Parks,Premises & Asset Management,Supplies & Services,Services,Professional Fees,11/06/2020,305722,1500,Smith Price Llp
External Trading Accounts,Business Parks,Premises & Asset Management,Supplies & Services,Services,Professional Fees,11/06/2020,305723,1500,Smith Price Llp
"Highways, Roads & Transport",Parking Services,Plan Pol & Transport,Premises related Expenditure,Repairs Alterations & Maintenance of Buildings,Car Park General Repairs,11/06/2020,305981,1552.8,Signway Supplies (Datchet Ltd)
Environmental & Regulatory,Regulatory Services,Housing and Environmental Health ,Supplies & Services,Grants and subscriptions,Capital Grants,25/06/2020,307457,1864.06,Rocon Contractors Ltd
Environmental & Regulatory,Waste management,Environmental,Employees,Indirect Employee Expenses,Agency Staff - Waged Posts,18/06/2020,306728,1581.55,24-7 Staffing
Environmental & Regulatory,Waste management,Environmental,Transport Related Expenditure,Direct Transport Costs,Repair Materials,04/06/2020,305434,1600,Trash Uk Limited
Environmental & Regulatory,Community Development,Community and Leisure ,Supplies & Services,Miscellaneous Expenses,Promotions / Special Events,25/06/2020,307314,2000,Yellow Brick Road Projects
"Highways, Roads & Transport",Highways and roads - maintenance,Plan Pol & Transport,Third Party Payments,Private contractors,Main Contractor Costs,18/06/2020,306227,1750,J P Lighting Design
Environmental & Regulatory,Waste management,Environmental,Transport Related Expenditure,Direct Transport Costs,Repair Materials,04/06/2020,304949,1775.93,Dennis Eagle Ltd
External Trading Accounts,Property Investments,Premises & Asset Management,Supplies & Services,Services,Professional Fees,04/06/2020,305614,1800,Vail Williams Llp
Environmental & Regulatory,Waste & Recycling Management,Environmental,Transport Related Expenditure,Direct Transport Costs,Tyres,04/06/2020,305088,55.73,Tructyre Ats
Environmental & Regulatory,Waste management,Environmental,Transport Related Expenditure,Direct Transport Costs,Tyres,04/06/2020,305088,266.73,Tructyre Ats
Environmental & Regulatory,Waste management,Environmental,Transport Related Expenditure,Direct Transport Costs,Tyres,04/06/2020,305088,1509.27,Tructyre Ats
Housing Services,"Housing strategy, advice and enabling",Housing and Environmental Health ,Supplies & Services,Communications & Computing,Computer Software,04/06/2020,305123,2203.41,Civica Uk Ltd
Cultural & Related,Open Spaces,Community and Leisure ,Premises related Expenditure,Grounds Maintenance Costs,Gm - Additional Works,18/06/2020,305604,1876.72,Stonbury Ltd
Central Services to the Public,Management & Support Services,IT,Supplies & Services,Communications & Computing,Software Maintenance,25/06/2020,307148,1896.51,Phoenix Software Ltd
Cultural & Related,Open Spaces,Environmental,Transport Related Expenditure,Direct Transport Costs,External Garages,04/06/2020,305230,432,T H White Ltd
Cultural & Related,Open Spaces,Environmental,Transport Related Expenditure,Direct Transport Costs,Repair Materials,04/06/2020,305230,1499.49,T H White Ltd
Environmental & Regulatory,Regulatory Services,Housing and Environmental Health ,Supplies & Services,Miscellaneous Expenses,Kennel fees,04/06/2020,305741,2002.44,Three Oak Boarding Kennels
Central Services to the Public,Management & Support Services,Finance,Supplies & Services,Grants & Subscriptions,Grants,25/06/2020,307383,2500,Snow Lettings Ltd
Central Services to the Public,Management & Support Services,Finance,Supplies & Services,Grants & Subscriptions,Grants,25/06/2020,307388,2500,Magnum Events Ltd
Central Services to the Public,Management & Support Services,Finance,Supplies & Services,Grants & Subscriptions,Grants,25/06/2020,307389,2500,Tci Mechanical + Fabrication
Central Services to the Public,Management & Support Services,Finance,Supplies & Services,Grants & Subscriptions,Grants,25/06/2020,307392,2500,Personal Data - Data Protection Act 1998
Central Services to the Public,Management & Support Services,Finance,Supplies & Services,Grants & Subscriptions,Grants,25/06/2020,307409,2500,Honeypot Small And Friendly Pet Care
Central Services to the Public,Management & Support Services,Finance,Supplies & Services,Grants & Subscriptions,Grants,25/06/2020,307412,2500,Cherry Trees Bed And Breakfast
Central Services to the Public,Management & Support Services,Finance,Supplies & Services,Grants & Subscriptions,Grants,25/06/2020,307416,2500,Catherine Coombes Flowers
Central Services to the Public,Management & Support Services,Finance,Supplies & Services,Grants & Subscriptions,Grants,25/06/2020,307427,2500,Alderholt Technology Ltd
Central Services to the Public,Management & Support Services,Finance,Supplies & Services,Grants & Subscriptions,Grants,25/06/2020,307431,2500,Quantum Performance Development Ltd
Central Services to the Public,Management & Support Services,Finance,Supplies & Services,Grants & Subscriptions,Grants,25/06/2020,307439,2500,Multi Media Replication Ltd
Central Services to the Public,Management & Support Services,Finance,Supplies & Services,Grants & Subscriptions,Grants,25/06/2020,307449,2500,Andover Buffets Limited
Central Services to the Public,Management & Support Services,Finance,Supplies & Services,Grants & Subscriptions,Grants,25/06/2020,307450,2500,Kool Kidz Childcare
Central Services to the Public,Management & Support Services,Finance,Supplies & Services,Grants & Subscriptions,Grants,25/06/2020,307452,2500,Cat Trading Ltd
Environmental & Regulatory,Community Development,Community and Leisure ,Supplies & Services,"Equipment, Furniture & Materials",Purchase Equip + Materials,18/06/2020,306930,2500,Yellow Brick Road Projects
Central Services to the Public,Management & Support Services,Premises & Asset Management,Premises related Expenditure,Cleaning and domestic supplies,Cleaning Materials-Purchases,11/06/2020,305086,2525,Test Valley Borough Council
Central Services to the Public,Management & Support Services,Premises & Asset Management,Supplies & Services,"Equipment, Furniture & Materials",Purchase Materials (Job Cost),18/06/2020,306853,2106,Yesss Electrical
"Highways, Roads & Transport",Parking Services,Plan Pol & Transport,Premises related Expenditure,Repairs Alterations & Maintenance of Buildings,Car Park General Repairs,18/06/2020,306599,2122.25,Clearwater 2010 Ltd
Planning & Development,Community Development,Community and Leisure ,Supplies & Services,Grants & Subscriptions,Grants,11/06/2020,306337,2554,Andover Mind
Environmental & Regulatory,Waste management,Environmental,Transport Related Expenditure,Direct Transport Costs,External Garages,04/06/2020,305082,538.63,Dennis Eagle Ltd
Environmental & Regulatory,Waste management,Environmental,Transport Related Expenditure,Direct Transport Costs,Repair Materials,04/06/2020,305082,1715.74,Dennis Eagle Ltd
Central Services to the Public,Management & Support Services,HR Services,Third Party Payments,Other Local Authorities,Shared Service Contract Costs,11/06/2020,305443,2274,Mhr International Uk Ltd
Central Services to the Public,Management & Support Services,Premises & Asset Management,Premises related Expenditure,Water Services,Water And Sewerage Charges,25/06/2020,307276,2731.27,Castle Water Limited
Environmental & Regulatory,Waste management,Environmental,Supplies & Services,"Printing, Stationery & General Office Expenses",External Printing,11/06/2020,303427,2283.2,Dura-Id Solutions Ltd
Cultural & Related,Recreation & Sport,Community and Leisure ,Supplies & Services,Services,Professional Fees,18/06/2020,306213,2332,Blake Morgan
Planning & Development,Community Development,Community and Leisure ,Supplies & Services,Grants & Subscriptions,Grants,25/06/2020,307479,2801,King Arthurs Way Community Association
Central Services to the Public,Management & Support Services,Premises & Asset Management,Supplies & Services,"Equipment, Furniture & Materials",Purchase Equip + Materials,18/06/2020,306778,2343.65,Sse Networks
Central Services to the Public,Management & Support Services,HR Services,Third Party Payments,Other Local Authorities,Shared Service Contract Costs,04/06/2020,303411,2396.16,Mhr International Uk Ltd
Central Services to the Public,Management & Support Services,HR Services,Third Party Payments,Other Local Authorities,Shared Service Contract Costs,04/06/2020,305616,2396.16,Mhr International Uk Ltd
Central Services,Corporate & Democratic Core,Corporate & Democratic,Supplies & Services,"Printing, Stationery & General Office Expenses",Licences / Affiliation Fees,11/06/2020,305983,2576,The Copyright Licensing Agency Ltd
Cultural & Related,Open Spaces,Community and Leisure ,Premises related Expenditure,Grounds Maintenance Costs,Gm - Additional Works,04/06/2020,305472,2600,The Arboricultural Co Ltd
Cultural & Related,Recreation & Sport,Community and Leisure ,Premises related Expenditure,Grounds Maintenance Costs,Gm - Additional Works,04/06/2020,305197,890.95,Stonbury Ltd
Cultural & Related,Open Spaces,Community and Leisure ,Premises related Expenditure,Grounds Maintenance Costs,Gm - Additional Works,04/06/2020,305197,1781.9,Stonbury Ltd
Environmental & Regulatory,Waste management,Environmental,Transport Related Expenditure,Direct Transport Costs,Repair Materials,11/06/2020,306008,2679.91,Dennis Eagle Ltd
Cultural & Related,Open Spaces,Community and Leisure ,Premises related Expenditure,Repairs Alterations & Maintenance of Buildings,Estates premises costs - AMP,04/06/2020,305600,2742,Personal Data - Data Protection Act 1998
Central Services to the Public,Management & Support Services,IT,Supplies & Services,Communications & Computing,Computer Software,04/06/2020,305588,3021.3,Winchester City Council
Environmental & Regulatory,Waste management,Environmental,Transport Related Expenditure,Direct Transport Costs,Repair Materials,11/06/2020,305593,3034.33,Dennis Eagle Ltd
Central Services to the Public,Management & Support Services,Environmental,Transport Related Expenditure,Direct Transport Costs,Diesel,11/06/2020,306004,3043.64,Wp Group Limited
Environmental & Regulatory,Street Cleansing (not chargeable to Highways),Environmental,Supplies & Services,"Equipment, Furniture & Materials",Purchase Equip + Materials,11/06/2020,305090,3120,Imperial Polythene Products Ltd
Environmental & Regulatory,Street Cleansing (not chargeable to Highways),Environmental,Supplies & Services,"Equipment, Furniture & Materials",Maintenance Equip + Materials,04/06/2020,304362,3120,Imperial Polythene Products Ltd
Environmental & Regulatory,Waste management,Environmental,Employees,Indirect Employee Expenses,Agency Staff - Waged Posts,11/06/2020,305974,1948.97,24-7 Staffing
Environmental & Regulatory,Waste management,Environmental,Employees,Indirect Employee Expenses,Agency Staff - Waged Posts,11/06/2020,305974,1175.87,24-7 Staffing
Environmental & Regulatory,Regulatory Services,Housing and Environmental Health ,Supplies & Services,Grants and subscriptions,Capital Grants,25/06/2020,307456,3753,Prism Medical Uk
External Trading Accounts,Economic Development,Premises & Asset Management,Premises related Expenditure,Repairs Alterations & Maintenance of Buildings,Planned Maintenance - Non Est,18/06/2020,306592,721.54,Spheretech Ltd
Cultural & Related,Culture & Heritage,Premises & Asset Management,Premises related Expenditure,Repairs Alterations & Maintenance of Buildings,Planned Maintenance - Non Est,18/06/2020,306592,580.12,Spheretech Ltd
Central Services to the Public,Management & Support Services,Premises & Asset Management,Premises related Expenditure,Repairs Alterations & Maintenance of Buildings,Planned Maintenance - Non Est,18/06/2020,306592,1155.68,Spheretech Ltd
Central Services to the Public,Management & Support Services,Premises & Asset Management,Premises related Expenditure,Repairs Alterations & Maintenance of Buildings,Planned Maintenance - Non Est,18/06/2020,306592,297.28,Spheretech Ltd
Cultural & Related,Culture & Heritage,Community and Leisure ,Premises related Expenditure,Repairs Alterations & Maintenance of Buildings,Planned Maintenance - Non Est,18/06/2020,306592,422.97,Spheretech Ltd
Environmental & Regulatory,Waste & Recycling Management,Environmental,Supplies & Services,Miscellaneous Expenses,Abandoned Vehicles,18/06/2020,304735,3237,Hampshire County Council
Central Services to the Public,Management & Support Services,Environmental,Transport Related Expenditure,Direct Transport Costs,Diesel,04/06/2020,305432,3282.95,Wp Group Limited
Central Services to the Public,Management & Support Services,HR Services,Supplies & Services,Services,Training Courses,18/06/2020,305098,2200,Adaptis Ltd
Central Services to the Public,Management & Support Services,HR Services,Supplies & Services,Services,External Training Consultants,18/06/2020,305098,1100,Adaptis Ltd
Central Services to the Public,Management & Support Services,Finance,Supplies & Services,"Printing, Stationery & General Office Expenses",Postage Costs,11/06/2020,305770,4002.9,Pitney Bowes Limited
Central Services to the Public,Management & Support Services,IT,Supplies & Services,"Equipment, Furniture & Materials",IT Supp and Serv AMP,18/06/2020,306760,3342.2,Exampleit Ltd
Environmental & Regulatory,Waste management,Environmental,Employees,Indirect Employee Expenses,Agency Staff - Waged Posts,18/06/2020,306744,2687.55,24-7 Staffing
Environmental & Regulatory,Waste management,Environmental,Employees,Indirect Employee Expenses,Agency Staff - Waged Posts,18/06/2020,306744,655.09,24-7 Staffing
Planning & Development,Community Development,Community and Leisure ,Supplies & Services,Grants & Subscriptions,Grants,25/06/2020,307478,4138,Chilbolton Village Hall
Planning & Development,Community Development,Community and Leisure ,Supplies & Services,Grants & Subscriptions,Grants,04/06/2020,305796,4219,Age Concern Hampshire
Environmental & Regulatory,Waste management,Environmental,Employees,Indirect Employee Expenses,Agency Staff - Waged Posts,18/06/2020,306730,2494.25,24-7 Staffing
Environmental & Regulatory,Waste management,Environmental,Employees,Indirect Employee Expenses,Agency Staff - Waged Posts,18/06/2020,306730,1126.29,24-7 Staffing
Cultural & Related,Open Spaces,Community and Leisure ,Premises related Expenditure,Grounds Maintenance Costs,Gm - Additional Works,25/06/2020,304336,74.74,Gristwood & Toms Ltd
Cultural & Related,Open Spaces,Community and Leisure ,Premises related Expenditure,Grounds Maintenance Costs,Non Contract Tree Works,25/06/2020,304336,127.44,Gristwood & Toms Ltd
Cultural & Related,Open Spaces,Community and Leisure ,Premises related Expenditure,Repairs Alterations & Maintenance of Buildings,Estates premises costs - AMP,25/06/2020,304336,3434.21,Gristwood & Toms Ltd
Environmental & Regulatory,Regulatory Services,Housing and Environmental Health ,Supplies & Services,Grants and subscriptions,Capital Grants,11/06/2020,306364,4424.09,J D Codd Ltd
Environmental & Regulatory,Waste management,Environmental,Employees,Indirect Employee Expenses,Agency Staff - Waged Posts,18/06/2020,304965,2472.71,24-7 Staffing
Environmental & Regulatory,Waste management,Environmental,Employees,Indirect Employee Expenses,Agency Staff - Waged Posts,18/06/2020,304965,1218.46,24-7 Staffing
Environmental & Regulatory,Waste management,Environmental,Transport Related Expenditure,Direct Transport Costs,Repair Materials,25/06/2020,306854,3806.29,Dennis Eagle Ltd
Cultural & Related,Culture & Heritage,Community and Leisure ,Premises related Expenditure,Energy Costs,Electricity,25/06/2020,307113,4900.95,Sparsholt College Hampshire
Cultural & Related,Culture & Heritage,Community and Leisure ,Premises related Expenditure,Energy Costs,Gas,25/06/2020,307113,-1465.42,Sparsholt College Hampshire
Cultural & Related,Culture & Heritage,Community and Leisure ,Premises related Expenditure,Water Services,Water And Sewerage Charges,25/06/2020,307113,508.68,Sparsholt College Hampshire
Central Services,Corporate & Democratic Core,Corporate & Democratic,Supplies & Services,Services,Project Consultancy - Policy,11/06/2020,305721,4101,Nexus Planning Ltd
Environmental & Regulatory,Waste management,Environmental,Supplies & Services,Grants & Subscriptions,Subscriptions,11/06/2020,304726,4996,Hampshire County Council
Central Services to the Public,Management & Support Services,Finance,Supplies & Services,Grants & Subscriptions,Grants,25/06/2020,307381,5000,Richmond Lane Guest House
Central Services to the Public,Management & Support Services,Finance,Supplies & Services,Grants & Subscriptions,Grants,25/06/2020,307418,5000,Chloes Hairdressing
Central Services to the Public,Management & Support Services,Finance,Supplies & Services,Grants & Subscriptions,Grants,25/06/2020,307420,5000,Clarks Carpentry Joinery Service.
Central Services to the Public,Management & Support Services,Finance,Supplies & Services,Grants & Subscriptions,Grants,25/06/2020,307430,5000,Glorious Game
Central Services to the Public,Management & Support Services,Finance,Supplies & Services,Grants & Subscriptions,Grants,25/06/2020,307441,5000,Draintech Tankers . Com Limited
Central Services to the Public,Management & Support Services,Finance,Supplies & Services,Grants & Subscriptions,Grants,25/06/2020,307446,5000,Karoo Design Limited
Central Services to the Public,Management & Support Services,Finance,Supplies & Services,Grants & Subscriptions,Grants,25/06/2020,307447,5000,L Williams Windows Limited
Central Services to the Public,Management & Support Services,Finance,Supplies & Services,Grants & Subscriptions,Grants,25/06/2020,307453,5000,Motorvate
Planning & Development,Economic Development,Planning Policy & Economic Development ,Supplies & Services,Grants & Subscriptions,Contributions,04/06/2020,305422,5000,Hampshire County Council
Planning & Development,Community Development,Community and Leisure ,Supplies & Services,Grants & Subscriptions,Grants,11/06/2020,306361,5117,Hampshire & Isle Of Wight Wildlife Trust
Cultural & Related,Open Spaces,Environmental,Supplies & Services,Services,Project Consultancy - Policy,11/06/2020,304644,4360.15,The Play Inspection Company Ltd
Central Services to the Public,Management & Support Services,HR Services,Third Party Payments,Other Local Authorities,Shared Service Contract Costs,18/06/2020,305765,4500,Penna Plc
Central Services to the Public,Management & Support Services,HR Services,Third Party Payments,Other Local Authorities,Shared Service Contract Costs,18/06/2020,305766,4500,Penna Plc
Central Services to the Public,Management & Support Services,Finance,Transport Related Expenditure,Contract Hire and Operating Leases,Officer lease cars,04/06/2020,305120,6090.09,Lex Autolease Ltd
Environmental & Regulatory,Community Development,Community and Leisure ,Supplies & Services,"Equipment, Furniture & Materials",Purchase Equip + Materials,18/06/2020,306808,6096.38,South Downs Leadership & Management Servs Ltd
Central Services to the Public,Management & Support Services,IT,Supplies & Services,Communications & Computing,Software Maintenance,24/06/2020,306915,6195,Waterford Technologies Ltd
Central Services to the Public,Management & Support Services,Premises & Asset Management,Supplies & Services,Services,Professional Fees,18/06/2020,306777,5240,Milestone Transport Planning Ltd
Planning & Development,Planning Policy,Plan Pol & Transport,Supplies & Services,Services,Professional Fees,18/06/2020,306027,5500,Land Use Consultants Ltd
Environmental & Regulatory,Regulatory Services,Housing and Environmental Health ,Supplies & Services,Grants and subscriptions,Capital Grants,11/06/2020,306365,6626.92,Lifestyle Solutions
Environmental & Regulatory,Regulatory Services,Housing and Environmental Health ,Supplies & Services,Grants and subscriptions,Capital Grants,25/06/2020,307315,6923.8,Rh Collings & Son
Cultural & Related,Recreation & Sport,Community and Leisure ,Third Party Payments,Private contractors,Main Contractor Costs,04/06/2020,305602,5800,Ams Contracting Ltd
Central Services to the Public,Management & Support Services,Premises & Asset Management,Premises related Expenditure,Repairs Alterations & Maintenance of Buildings,Estates premises costs - AMP,18/06/2020,306862,5809.72,Hcl Safety Ltd
Cultural & Related,Culture & Heritage,Community and Leisure ,Premises related Expenditure,Energy Costs,Electricity,04/06/2020,305587,3800,Sparsholt College Hampshire
Cultural & Related,Culture & Heritage,Community and Leisure ,Premises related Expenditure,Energy Costs,Gas,04/06/2020,305587,1300,Sparsholt College Hampshire
Cultural & Related,Culture & Heritage,Community and Leisure ,Premises related Expenditure,Water Services,Water And Sewerage Charges,04/06/2020,305587,1017.36,Sparsholt College Hampshire
Central Services to the Public,Management & Support Services,Finance,Supplies & Services,Grants & Subscriptions,Grants,25/06/2020,307385,7500,Book On Line Limited
Central Services to the Public,Management & Support Services,Finance,Supplies & Services,Grants & Subscriptions,Grants,25/06/2020,307440,7500,Sunbeam Watercress Ltd
Central Services to the Public,Management & Support Services,Finance,Transport Related Expenditure,Contract Hire and Operating Leases,Officer lease cars,11/06/2020,306367,8238.19,Hm Revenue And Customs
Central Services to the Public,Management & Support Services,Environmental,Transport Related Expenditure,Direct Transport Costs,Diesel,11/06/2020,305726,7750.72,Wp Group Limited
Cultural & Related,Open Spaces,Community and Leisure ,Premises related Expenditure,Grounds Maintenance Costs,Snagging Works,04/06/2020,305603,7837,Personal Data - Data Protection Act 1998
Central Services to the Public,Management & Support Services,IT,Supplies & Services,Communications & Computing,Computer Software,04/06/2020,305589,7903.33,Winchester City Council
Environmental & Regulatory,Regulatory Services,Housing and Environmental Health ,Supplies & Services,Grants and subscriptions,Capital Grants,25/06/2020,307454,9820.94,Rocon Contractors Ltd
Central Services to the Public,Management & Support Services,Finance,Supplies & Services,Grants & Subscriptions,Grants,25/06/2020,307380,10000,Barnikels Limited
Central Services to the Public,Management & Support Services,Finance,Supplies & Services,Grants & Subscriptions,Grants,25/06/2020,307382,10000,Amport And District Coaches  Limited
Central Services to the Public,Management & Support Services,Finance,Supplies & Services,Grants & Subscriptions,Grants,25/06/2020,307384,10000,Bnd Abrasives
Central Services to the Public,Management & Support Services,Finance,Supplies & Services,Grants & Subscriptions,Grants,25/06/2020,307386,10000,Wathen Marine Catering Equipment Services Ltd
Central Services to the Public,Management & Support Services,Finance,Supplies & Services,Grants & Subscriptions,Grants,25/06/2020,307387,10000,Whites Ah Ltd 
Central Services to the Public,Management & Support Services,Finance,Supplies & Services,Grants & Subscriptions,Grants,25/06/2020,307390,10000,Sound Decisions Ltd
Central Services to the Public,Management & Support Services,Finance,Supplies & Services,Grants & Subscriptions,Grants,25/06/2020,307391,10000,Personal Data - Data Protection Act 1998
Central Services to the Public,Management & Support Services,Finance,Supplies & Services,Grants & Subscriptions,Grants,25/06/2020,307410,10000,Complete Coherence Ltd
Central Services to the Public,Management & Support Services,Finance,Supplies & Services,Grants & Subscriptions,Grants,25/06/2020,307423,10000,Japanese Knotweed Ltd
Central Services to the Public,Management & Support Services,Finance,Supplies & Services,Grants & Subscriptions,Grants,25/06/2020,307425,10000,Andover Radio Limited
Central Services to the Public,Management & Support Services,Finance,Supplies & Services,Grants & Subscriptions,Grants,25/06/2020,307438,10000,Symbiosis Uk Ltd
Central Services to the Public,Management & Support Services,Finance,Supplies & Services,Grants & Subscriptions,Grants,25/06/2020,307442,10000,Bml (Printers) Ltd
Central Services to the Public,Management & Support Services,Finance,Supplies & Services,Grants & Subscriptions,Grants,25/06/2020,307443,10000,Valley Leisure Limited
Central Services to the Public,Management & Support Services,Finance,Supplies & Services,Grants & Subscriptions,Grants,25/06/2020,307444,10000,Cecence Limited
Central Services to the Public,Management & Support Services,Finance,Supplies & Services,Grants & Subscriptions,Grants,25/06/2020,307445,10000,Woodstock Furniture Ltd
Central Services to the Public,Management & Support Services,Finance,Supplies & Services,Grants & Subscriptions,Grants,25/06/2020,307448,10000,Romsey Centre Pre-School
Central Services to the Public,Management & Support Services,Finance,Supplies & Services,Grants & Subscriptions,Grants,25/06/2020,307451,10000,Max Wifi (Uk) Ltd
Central Services to the Public,Local Tax Collection,Revenues,Supplies & Services,Grants & Subscriptions,Grants,04/06/2020,305749,10305,Andover Town Centre Bid Ltd
Environmental & Regulatory,Waste management,Environmental,Supplies & Services,"Equipment, Furniture & Materials",Purchase Equip + Materials,25/06/2020,305093,9780,Mgb Plastics Ltd
Central Services to the Public,Management & Support Services,HR Services,Third Party Payments,Other Local Authorities,Shared Service Contract Costs,18/06/2020,305767,10383.5,Penna Plc
Cultural & Related,Open Spaces,Community and Leisure ,Third Party Payments,Private contractors,Main Contractor Costs,04/06/2020,303001,10952,The Hampshire & Iow Wildlife Trust
Central Services to the Public,Management & Support Services,Estates and Economic Development ,Third Party Payments,Private contractors,Main Contractor Costs,11/06/2020,305976,13453.9,Kelsey Building & Roofing Ltd
Cultural & Related,Open Spaces,Community and Leisure ,Premises related Expenditure,Grounds Maintenance Costs,Non Contract Tree Works,25/06/2020,306882,935.57,Gristwood & Toms Ltd
Cultural & Related,Open Spaces,Community and Leisure ,Premises related Expenditure,Repairs Alterations & Maintenance of Buildings,Estates premises costs - AMP,25/06/2020,306882,13917.4,Gristwood & Toms Ltd
Environmental & Regulatory,Regulatory Services,Housing and Environmental Health ,Supplies & Services,Grants and subscriptions,Capital Grants,25/06/2020,307455,18378,Rh Collings & Son
Environmental & Regulatory,Waste management,Environmental,Supplies & Services,"Equipment, Furniture & Materials",Purchase Equip + Materials,25/06/2020,304733,9780,Mgb Plastics Ltd
Environmental & Regulatory,Waste management,Environmental,Supplies & Services,"Equipment, Furniture & Materials",Purchase Equip + Materials,25/06/2020,304733,9780,Mgb Plastics Ltd
External Trading Accounts,Business Parks,Premises & Asset Management,Supplies & Services,Services,Professional Fees,11/06/2020,305740,45870.11,Kier Ventures Ltd
